bitfinex-derivatives/quotes_BTCF0:USTF0_20251230
["timestamp","ask_amount","ask_price","bid_price","bid_amount"]
[1767077876929,0.15546088,87450.0,87436.0,0.0114515]
[1767077877126,0.05732,87449.0,87436.0,0.0114515]
[1767077881848,0.00017151,87462.0,87439.0,0.15546088]
[1767077882039,0.15546088,87460.0,87439.0,0.15546088]
[1767077882233,0.15546088,87460.0,87442.0,0.0114507]
[1767077882439,0.05728,87459.0,87445.0,0.0114503]
[1767077883645,0.00017151,87462.0,87445.0,0.0114503]
[1767077883847,0.05728,87461.0,87445.0,0.0114503]
[1767077884046,0.15546088,87460.0,87445.0,0.0114503]
[1767077886344,0.05728,87461.0,87445.0,0.0114503]
[1767077886549,0.15546088,87460.0,87445.0,0.0114503]
[1767077890054,0.15546088,87460.0,87441.0,0.1087307]
[1767077890245,0.15546088,87460.0,87441.0,0.09728]
[1767077890445,0.15546088,87460.0,87442.0,0.11434778]
[1767077900462,0.0687283,87461.0,87442.0,0.11434778]
[1767077903871,0.0687283,87461.0,87442.0,0.0114507]
[1767077908677,0.0114487,87458.0,87438.0,0.0114511]
[1767077912581,0.05728,87461.0,87438.0,0.0114511]
[1767077914181,0.0114484,87460.0,87438.0,0.0114511]
[1767077914381,0.05728,87459.0,87446.0,0.0114502]
[1767077914582,0.15456,87459.0,87446.0,0.0114502]
[1767077927990,0.15456,87459.0,87442.0,0.0114506]
[1767077932684,0.00017151,87462.0,87440.0,0.09728]
[1767077932685,0.00017151,87462.0,87448.0,0.0114499]
[1767077933389,0.00017151,87462.0,87449.0,0.1143504]
[1767077934187,0.00017151,87462.0,87444.0,0.0114503]
[1767077934389,0.00017151,87462.0,87445.0,0.11434452]
[1767077935391,0.00017151,87462.0,87445.0,0.17162452]
[1767077940000,0.00017151,87462.0,87446.0,0.0114502]
[1767077940703,0.00017151,87462.0,87447.0,0.11434582]
[1767077940888,0.00017151,87462.0,87445.0,0.05728]
[1767077947000,0.00121118,87454.0,87445.0,0.05728]
[1767077948199,0.00017151,87462.0,87445.0,0.05728]
[1767077956203,0.00017151,87462.0,87446.0,0.0114502]
[1767077957204,0.00017151,87462.0,87450.0,0.0114496]
[1767077958201,0.00017151,87462.0,87452.0,0.0114493]
[1767077958605,0.00017151,87462.0,87445.0,0.05728]
[1767077959503,0.15456,87465.0,87445.0,0.05728]
[1767077960804,0.00017151,87464.0,87446.0,0.00017151]
[1767077961210,0.00017151,87464.0,87451.0,0.0114495]
[1767077961399,0.00017151,87464.0,87454.0,0.0114491]
[1767077961697,0.15456,87465.0,87454.0,0.0114491]
[1767077962111,0.15556556,87470.0,87454.0,0.0114491]
[1767077964007,0.00017151,87471.0,87457.0,0.0114487]
[1767077964198,0.05728,87476.0,87460.0,0.0114483]
[1767077965199,0.05728,87476.0,87460.0,0.16701386]
[1767077965399,0.05728,87476.0,87460.0,0.0114483]
[1767077971311,0.05728,87476.0,87460.0,0.16701386]
[1767077973907,0.05728,87476.0,87460.0,0.0114483]
[1767077980422,0.05728,87476.0,87460.0,0.16701386]
[1767077982032,0.05728,87476.0,87460.0,0.0114483]
[1767077982321,0.05728,87476.0,87460.0,0.16701386]
[1767077985928,0.05728,87476.0,87460.0,0.22429386]
[1767077991633,0.05728,87476.0,87460.0,0.0687283]
[1767077991929,0.05728,87476.0,87460.0,0.22429386]
[1767077992330,0.05728,87476.0,87460.0,0.0687283]
[1767077995434,0.05728,87476.0,87463.0,0.0114479]
[1767077996339,0.00017151,87477.0,87463.0,0.0114479]
[1767077998838,0.00017151,87477.0,87466.0,0.0114476]
[1767078000836,0.00017151,87477.0,87462.0,0.0114481]
[1767078001233,0.00017151,87477.0,87460.0,0.21284556]
[1767078001438,0.05728,87482.0,87467.0,0.15556556]
[1767078001741,0.05728,87482.0,87467.0,0.05728]
[1767078002833,0.05728,87482.0,87466.0,0.00017151]
[1767078002834,0.15556556,87480.0,87466.0,0.00017151]
[1767078003033,0.0114463,87476.0,87453.0,0.0114492]
[1767078003239,0.15556556,87470.0,87454.0,0.15452]
[1767078004840,0.05728,87475.0,87454.0,0.15452]
[1767078005145,0.05728,87475.0,87455.0,0.011449]
[1767078005743,0.05728,87475.0,87454.0,0.15452]
[1767078006639,0.05728,87475.0,87454.0,0.1659691]
[1767078006844,0.15556556,87470.0,87454.0,0.1659691]
[1767078007233,0.05728,87475.0,87457.0,0.0114486]
[1767078007436,0.05728,87475.0,87460.0,0.15556556]
[1767078007837,0.05728,87475.0,87454.0,0.15452]
[1767078012950,0.15556556,87470.0,87454.0,0.15452]
[1767078014253,0.00116034,87462.0,87454.0,0.15452]
[1767078014553,0.15556556,87470.0,87454.0,0.15452]
[1767078015147,0.05728,87475.0,87454.0,0.15452]
[1767078017159,0.15556556,87470.0,87454.0,0.15452]
[1767078017461,0.00103686,87462.0,87454.0,0.15452]
[1767078017958,0.15556556,87470.0,87454.0,0.15452]
[1767078018957,0.15556556,87470.0,87455.0,0.05728]
[1767078020263,0.05728,87475.0,87455.0,0.05728]
[1767078021363,0.0114459,87480.0,87455.0,0.05728]
[1767078021666,0.18527764,87479.0,87455.0,0.068729]
[1767078021870,0.0011328,87467.0,87455.0,0.068729]
[1767078022362,0.15452,87479.0,87455.0,0.068729]
[1767078022559,0.03075803,87478.0,87455.0,0.068729]
[1767078022761,0.15452,87479.0,87455.0,0.068729]
[1767078022963,0.03075803,87478.0,87455.0,0.068729]
[1767078023262,0.15452,87479.0,87455.0,0.068729]
[1767078023455,0.03075819,87478.0,87458.0,0.0114486]
[1767078023655,0.15452,87479.0,87458.0,0.0114486]
[1767078023859,0.03075819,87478.0,87458.0,0.0114486]
[1767078024154,0.15452,87479.0,87458.0,0.0114486]
[1767078024354,0.03075826,87478.0,87458.0,0.0114486]
[1767078024560,0.15452,87479.0,87458.0,0.0114486]
[1767078024963,0.00104758,87469.0,87458.0,0.0114486]
[1767078025366,0.00104758,87469.0,87455.0,0.05728]
[1767078025559,0.00121737,87462.0,87455.0,0.05728]
[1767078025764,0.011446,87478.0,87455.0,0.05728]
[1767078031668,0.0114464,87475.0,87455.0,0.05728]
[1767078032167,0.15452,87479.0,87455.0,0.05728]
[1767078033170,0.0114466,87474.0,87455.0,0.05728]
[1767078033365,0.05728,87473.0,87455.0,0.05728]
[1767078035967,0.05728,87473.0,87456.0,0.0114489]
[1767078038273,0.05728,87473.0,87455.0,0.05728]
[1767078040677,0.05728,87473.0,87456.0,0.05728]
[1767078042878,0.05728,87473.0,87457.0,0.05728]
[1767078043275,0.00113257,87465.0,87457.0,0.05728]
[1767078043674,0.0012995,87461.0,87457.0,0.05728]
[1767078043870,0.05728,87473.0,87457.0,0.05728]
[1767078045782,0.0114485,87460.0,87437.0,0.09724]
[1767078045971,0.0114485,87460.0,87438.0,0.05728]
[1767078045972,0.05728,87459.0,87438.0,0.05728]
[1767078046880,0.00017151,87457.0,87440.0,0.00017151]
[1767078047977,0.0114489,87456.0,87440.0,0.00017151]
[1767078048188,0.0114493,87453.0,87431.0,0.05728]
[1767078049183,0.0114493,87453.0,87433.0,0.00017151]
[1767078052385,0.05728,87452.0,87433.0,0.00017151]
[1767078060389,0.0114496,87451.0,87433.0,0.00017151]
[1767078060590,0.09728,87450.0,87433.0,0.00017151]
[1767078060785,0.09728,87450.0,87412.0,9.585e-05]
[1767078060786,0.0114499,87449.0,87426.0,0.02263963]
[1767078060983,0.25282313,87450.0,87425.0,0.06173338]
[1767078061701,0.0114504,87445.0,87422.0,0.0114533]
[1767078061998,0.05728,87444.0,87422.0,0.0114533]
[1767078062797,0.05728,87444.0,87422.0,0.0114033]
[1767078064701,0.05728,87444.0,87425.0,0.0114529]
[1767078070793,0.05728,87444.0,87421.0,0.0687334]
[1767078077404,0.0114506,87443.0,87421.0,0.0687334]
[1767078082900,0.05728,87444.0,87421.0,0.0687334]
[1767078083614,0.15565725,87440.0,87421.0,0.0687334]
[1767078083908,0.00017151,87439.0,87421.0,0.05728]
[1767078086012,0.00017151,87439.0,87421.0,0.0687334]
[1767078089806,0.00017151,87439.0,87421.0,0.05728]
[1767078095612,0.00017151,87439.0,87422.0,0.0114533]
[1767078095917,0.00017151,87439.0,87421.0,0.05728]
[1767078108228,0.00017151,87439.0,87421.0,0.0687335]
[1767078130343,0.00017151,87439.0,87424.0,0.011453]
[1767078132243,0.00017151,87439.0,87421.0,0.05728]
[1767078140845,0.00017151,87439.0,87422.0,0.0114533]
[1767078141147,1.51e-06,87439.0,87422.0,0.0114533]
[1767078141353,0.09728,87442.0,87422.0,0.0114533]
[1767078142346,0.00017151,87441.0,87423.0,0.00017151]
[1767078144254,0.00228683,87458.0,87427.0,0.0114527]
[1767078144255,0.0114495,87452.0,87427.0,0.0114527]
[1767078144453,0.15456,87451.0,87427.0,0.0114527]
[1767078145353,0.00017151,87448.0,87430.0,0.0114523]
[1767078145552,0.05956683,87458.0,87431.0,0.05728]
[1767078145757,0.03075528,87457.0,87431.0,0.05728]
[1767078146053,0.05956683,87458.0,87436.0,0.0114514]
[1767078146458,0.00017151,87456.0,87436.0,0.0114514]
[1767078147450,0.00017151,87456.0,87432.0,0.011452]
[1767078147954,0.00017151,87456.0,87432.0,0.12580828]
[1767078152359,0.0114492,87454.0,87432.0,0.12580828]
[1767078153559,0.0114496,87451.0,87428.0,0.0114525]
[1767078153758,0.0114496,87451.0,87433.0,0.05728]
[1767078155660,0.0114491,87455.0,87433.0,0.05728]
[1767078155860,0.0114491,87455.0,87434.0,0.0114517]
[1767078156059,0.0687291,87455.0,87434.0,0.0114517]
[1767078156261,0.1660091,87455.0,87434.0,0.0114517]
[1767078156664,0.0114491,87455.0,87433.0,0.05728]
[1767078156864,0.0114495,87452.0,87433.0,0.05728]
[1767078166684,0.15456,87455.0,87433.0,0.05728]
[1767078168183,0.0114497,87450.0,87433.0,0.05728]
[1767078173690,0.0114497,87450.0,87430.0,0.0114522]
[1767078173891,0.0114497,87450.0,87431.0,0.15456]
[1767078174990,0.0114497,87450.0,87432.0,0.011452]
[1767078176797,0.0114497,87450.0,87431.0,0.15456]
[1767078181095,0.0114497,87450.0,87431.0,0.1660122]
[1767078183197,0.0114497,87450.0,87431.0,0.0114522]
[1767078183399,0.0114497,87450.0,87432.0,0.05728]
[1767078184197,0.0114493,87454.0,87433.0,0.0114519]
[1767078184500,0.0114496,87451.0,87433.0,0.0114519]
[1767078186499,0.1660092,87455.0,87433.0,0.0114519]
[1767078186798,0.03053708,87454.0,87436.0,0.0114515]
[1767078187098,0.1660092,87455.0,87436.0,0.0114515]
[1767078187398,0.0305366,87454.0,87436.0,0.0114515]
[1767078187600,0.1660092,87455.0,87436.0,0.0114515]
[1767078187899,0.03053613,87454.0,87436.0,0.0114515]
[1767078188100,0.1660092,87455.0,87436.0,0.0114515]
[1767078188400,0.03053578,87454.0,87436.0,0.0114515]
[1767078188599,0.15456,87455.0,87436.0,0.0114515]
[1767078196007,0.15456,87455.0,87433.0,0.0114519]
[1767078202112,0.0114493,87453.0,87432.0,0.05728]
[1767078202714,0.15561756,87450.0,87432.0,0.05728]
[1767078205013,0.0114493,87453.0,87432.0,0.05728]
[1767078205215,0.15561756,87450.0,87432.0,0.05728]
[1767078205414,0.0114493,87453.0,87432.0,0.05728]
[1767078205724,0.15456,87455.0,87434.0,0.0114518]
[1767078205908,0.0305317,87454.0,87434.0,0.0114518]
[1767078206109,0.15456,87455.0,87434.0,0.0114518]
[1767078206306,0.03053167,87454.0,87434.0,0.0114518]
[1767078206513,0.15456,87455.0,87434.0,0.0114518]
[1767078206713,0.03053167,87454.0,87434.0,0.0114518]
[1767078206911,0.15456,87455.0,87434.0,0.0114518]
[1767078207111,0.03053139,87454.0,87434.0,0.0114518]
[1767078207312,0.15456,87455.0,87434.0,0.0114518]
[1767078207512,0.03053148,87454.0,87434.0,0.0114518]
[1767078207713,0.15456,87455.0,87434.0,0.0114518]
[1767078209421,0.00017151,87456.0,87437.0,0.0114514]
[1767078209620,0.05728,87455.0,87437.0,0.0114514]
[1767078210619,0.05728,87455.0,87433.0,0.0114518]
[1767078210917,0.05728,87455.0,87433.0,0.12580808]
[1767078212016,0.0687291,87455.0,87433.0,0.12580808]
[1767078214326,0.05728,87455.0,87433.0,0.12580808]
[1767078215823,0.05728,87455.0,87433.0,0.18873222]
[1767078216726,0.0687291,87455.0,87433.0,0.18873222]
[1767078217728,0.05728,87455.0,87433.0,0.18873222]
[1767078218526,0.05728,87455.0,87436.0,0.0114515]
[1767078220319,0.05728,87455.0,87433.0,0.06292414]
[1767078220525,0.05728,87455.0,87432.0,0.068732]
[1767078220825,0.05728,87455.0,87433.0,0.11435694]
[1767078221630,0.05728,87455.0,87434.0,0.0114518]
[1767078223826,0.05728,87455.0,87440.0,0.15561756]
[1767078224028,0.05728,87455.0,87440.0,0.21289756]
[1767078225134,0.05728,87455.0,87440.0,0.05728]
[1767078225331,0.05728,87455.0,87440.0,0.21289756]
[1767078225732,0.05728,87455.0,87440.0,0.22434856]
[1767078236040,0.09728,87464.0,87446.0,0.0114502]
[1767078236239,0.05728,87463.0,87450.0,0.15561756]
[1767078237434,0.05728,87463.0,87451.0,0.05728]
[1767078240147,0.09728,87476.0,87453.0,0.15561756]
[1767078240441,0.05728,87476.0,87460.0,0.15561756]
[1767078240629,0.05728,87476.0,87461.0,0.05728]
[1767078247059,0.00017151,87477.0,87466.0,0.15561756]
[1767078247251,0.00017151,87477.0,87467.0,0.21289756]
[1767078250962,0.00017151,87477.0,87467.0,0.05728]
[1767078252759,0.00017151,87477.0,87467.0,0.0687274]
[1767078254166,0.00017151,87477.0,87467.0,0.05728]
[1767078254460,0.00017151,87477.0,87467.0,0.22434496]
[1767078254858,0.00017151,87477.0,87467.0,0.0687274]
[1767078259073,1e-08,87477.0,87470.0,0.011447]
[1767078259760,0.09956604,87488.0,87473.0,0.0114466]
[1767078259963,0.09956604,87488.0,87474.0,0.05724]
[1767078260165,0.00228604,87488.0,87475.0,0.0114464]
[1767078260370,0.05724,87494.0,87475.0,0.0114464]
[1767078260675,0.00011404,87493.0,87476.0,0.00017151]
[1767078268985,0.00011404,87493.0,87477.0,0.0114461]
[1767078270602,0.00011404,87493.0,87476.0,0.00017151]
[1767078279986,0.00011404,87493.0,87476.0,0.01161781]
[1767078288597,0.00011404,87493.0,87476.0,0.00017151]
[1767078288986,0.0114455,87482.0,87463.0,0.2178181]
[1767078289187,0.09724,87486.0,87463.0,0.0633381]
[1767078289495,0.09724,87486.0,87457.0,0.0111865]
[1767078289496,0.011446,87479.0,87462.0,0.15448]
[1767078290097,0.011446,87479.0,87462.0,0.15465151]
[1767078290390,0.0114463,87476.0,87462.0,0.00017151]
[1767078292597,0.0114459,87480.0,87462.0,0.00017151]
[1767078294595,0.0114453,87484.0,87462.0,0.00017151]
[1767078295400,0.0114453,87484.0,87463.0,0.0114479]
[1767078296099,0.09724,87486.0,87463.0,0.0114479]
[1767078296597,0.0114451,87485.0,87463.0,0.0114479]
[1767078300912,0.0114451,87485.0,87462.0,0.00017151]
[1767078301096,0.0114456,87482.0,87462.0,0.00017151]
[1767078308609,0.09724,87486.0,87462.0,0.00017151]
[1767078310206,0.0114457,87481.0,87462.0,0.00017151]
[1767078311902,0.0114455,87482.0,87462.0,0.00017151]
[1767078314503,0.09724,87486.0,87462.0,0.00017151]
[1767078314711,0.05724,87481.0,87459.0,0.05724]
[1767078315012,0.0114471,87471.0,87459.0,0.05724]
[1767078316304,0.0114475,87468.0,87458.0,0.00228683]
[1767078316609,0.0114475,87468.0,87458.0,0.05952683]
[1767078317402,0.0114469,87472.0,87458.0,0.05952683]
[1767078321910,0.0114472,87469.0,87458.0,0.05952683]
[1767078328616,0.15555851,87470.0,87458.0,0.05952683]
[1767078328821,0.16700561,87470.0,87458.0,0.05952683]
[1767078330224,0.0114471,87470.0,87458.0,0.05952683]
[1767078330422,0.16700561,87470.0,87458.0,0.05952683]
[1767078339837,0.0114471,87470.0,87458.0,0.05952683]
[1767078340035,0.16700561,87470.0,87458.0,0.05952683]
[1767078349345,0.0114471,87470.0,87458.0,0.05952683]
[1767078361357,0.02224,87473.0,87458.0,0.05952683]
[1767078361561,0.05724,87480.0,87470.0,0.15555851]
[1767078361858,0.05724,87480.0,87466.0,0.0114476]
[1767078362360,0.16700301,87490.0,87470.0,0.15555851]
[1767078362653,0.03045444,87489.0,87480.0,0.15555851]
[1767078362854,0.00017151,87489.0,87476.0,0.00017151]
[1767078365359,0.0114439,87495.0,87476.0,0.00017151]
[1767078365360,0.0114428,87503.0,87480.0,0.0114457]
[1767078365663,0.08742743,87502.0,87481.0,0.05724]
[1767078365864,0.05724,87502.0,87481.0,0.05724]
[1767078366359,0.00011404,87500.0,87481.0,0.05724]
[1767078367756,0.00011404,87500.0,87482.0,0.0114454]
[1767078370960,0.00011404,87500.0,87490.0,0.15555851]
[1767078371164,0.00011404,87500.0,87482.0,0.0114454]
[1767078371359,0.00011404,87500.0,87490.0,0.15555851]
[1767078371560,0.00011404,87500.0,87485.0,0.011445]
[1767078371760,0.00011404,87500.0,87490.0,0.15555851]
[1767078372161,0.05724,87503.0,87490.0,0.15555851]
[1767078374972,0.05724,87503.0,87485.0,0.011445]
[1767078377078,0.05724,87519.0,87494.0,0.0114438]
[1767078377265,0.00228526,87518.0,87500.0,0.15555851]
[1767078377465,0.00228526,87518.0,87497.0,0.09741151]
[1767078377972,0.00228526,87518.0,87500.0,0.16700151]
[1767078378269,0.09724,87522.0,87500.0,0.16700151]
[1767078378470,0.09724,87522.0,87500.0,0.011443]
[1767078378775,0.09724,87522.0,87500.0,0.16700151]
[1767078379473,0.0114404,87521.0,87498.0,0.0114434]
[1767078379676,0.0114404,87521.0,87500.0,0.15555851]
[1767078379972,0.15555851,87520.0,87500.0,0.15555851]
[1767078381675,0.15555851,87520.0,87501.0,0.05728]
[1767078383064,0.0114407,87519.0,87501.0,0.05728]
[1767078383777,0.0114415,87513.0,87501.0,0.05728]
[1767078386279,0.0114415,87513.0,87497.0,0.00017151]
[1767078386478,0.0114415,87513.0,87500.0,0.05728]
[1767078389880,0.1086803,87522.0,87497.0,0.09741151]
[1767078390083,0.0114416,87512.0,87499.0,0.05724]
[1767078390580,0.011442,87509.0,87499.0,0.05724]
[1767078390979,0.011442,87509.0,87497.0,0.00017151]
[1767078391177,0.0114397,87527.0,87488.0,0.00228604]
[1767078391178,0.0114425,87505.0,87488.0,0.00228604]
[1767078391376,0.0114425,87505.0,87489.0,0.05724]
[1767078391978,0.0114425,87505.0,87488.0,0.00228604]
[1767078392170,0.0114425,87505.0,87488.0,0.05969745]
[1767078392375,0.01161366,87505.0,87488.0,0.05969745]
[1767078394379,0.0114429,87502.0,87488.0,0.00245745]
[1767078396181,0.0972,87502.0,87477.0,0.0972]
[1767078396383,0.0114433,87499.0,87478.0,0.05728]
[1767078397386,0.0114433,87499.0,87480.0,0.00017141]
[1767078399190,0.0114439,87495.0,87480.0,0.00017141]
[1767078400687,0.0114433,87499.0,87480.0,0.00017141]
[1767078401081,0.0114437,87496.0,87480.0,0.00017141]
[1767078401895,0.0114432,87500.0,87480.0,0.00017141]
[1767078408196,0.05728,87501.0,87481.0,0.0114456]
[1767078408897,0.0114432,87500.0,87480.0,0.01161711]
[1767078413701,0.068723,87501.0,87480.0,0.01161711]
[1767078420298,0.068723,87501.0,87483.0,0.0114454]
[1767078421395,0.05728,87501.0,87483.0,0.0114454]
[1767078421804,0.05728,87501.0,87486.0,0.011445]
[1767078422304,0.05728,87501.0,87486.0,0.068685]
[1767078422700,0.05728,87501.0,87486.0,0.05724]
[1767078422905,0.0687231,87501.0,87486.0,0.05724]
[1767078423105,0.05728,87501.0,87486.0,0.05724]
[1767078423309,0.0114432,87500.0,87486.0,0.05724]
[1767078423898,0.05728,87501.0,87486.0,0.05724]
[1767078431401,0.05728,87501.0,87486.0,0.068685]
[1767078432312,0.05728,87501.0,87489.0,0.0114446]
[1767078434917,0.05728,87501.0,87486.0,0.05724]
[1767078435216,0.05728,87501.0,87490.0,0.0114444]
[1767078435809,0.00017116,87505.0,87494.0,0.0114439]
[1767078436010,0.05724,87510.0,87494.0,0.0686839]
[1767078437717,0.09724,87515.0,87501.0,0.0114429]
[1767078437907,0.15448,87515.0,87501.0,0.0114429]
[1767078438616,0.05724,87517.0,87501.0,0.0114429]
[1767078439408,0.05724,87517.0,87500.0,0.00017141]
[1767078446523,0.05724,87517.0,87500.0,0.15554925]
[1767078450118,0.00228526,87518.0,87500.0,0.15554925]
[1767078450320,0.00228526,87518.0,87504.0,0.0114426]
[1767078450923,0.00228526,87518.0,87508.0,0.15537784]
[1767078451125,0.00228526,87518.0,87504.0,0.0114426]
[1767078453626,0.00228526,87518.0,87503.0,0.05724]
[1767078454526,0.00228526,87518.0,87503.0,0.0686827]
[1767078456225,6e-08,87518.0,87504.0,0.211472]
[1767078456527,0.0114384,87536.0,87508.0,0.15537784]
[1767078457325,0.0114389,87533.0,87513.0,0.0114413]
[1767078457519,0.0114389,87533.0,87514.0,0.05724]
[1767078458334,0.0114389,87533.0,87515.0,0.0114411]
[1767078458534,0.15444,87537.0,87518.0,0.0114408]
[1767078458831,0.15444,87537.0,87519.0,0.00017141]
[1767078459626,0.0114385,87536.0,87519.0,0.00017141]
[1767078460026,0.0114389,87533.0,87519.0,0.00017141]
[1767078463948,0.1658783,87537.0,87519.0,0.00017141]
[1767078464247,0.0114388,87534.0,87519.0,0.00017141]
[1767078465148,0.15444,87537.0,87519.0,0.00017141]
[1767078466150,0.0114388,87533.0,87519.0,0.00017141]
[1767078468645,0.0114385,87536.0,87519.0,0.00017141]
[1767078476861,0.15444,87537.0,87519.0,0.01161201]
[1767078479759,0.0114385,87536.0,87519.0,0.00017141]
[1767078479963,0.0114396,87527.0,87507.0,0.0114422]
[1767078480160,0.15537784,87530.0,87513.0,0.05724]
[1767078480562,0.21261784,87530.0,87513.0,0.05724]
[1767078480863,0.15537784,87523.0,87513.0,0.05724]
[1767078481065,0.00017141,87527.0,87513.0,0.05724]
[1767078481858,0.00017141,87527.0,87513.0,0.0686814]
[1767078484567,0.00017141,87527.0,87516.0,0.011441]
[1767078485169,0.00017141,87527.0,87513.0,0.05724]
[1767078485367,0.00017141,87527.0,87512.0,0.0686814]
[1767078485559,0.00017141,87527.0,87516.0,0.011441]
[1767078486658,0.00017141,87527.0,87514.0,0.05724]
[1767078486859,0.00017141,87527.0,87514.0,0.0686813]
[1767078487369,0.00017141,87527.0,87509.0,0.00017141]
[1767078487569,0.00017141,87527.0,87510.0,0.0114418]
[1767078488461,0.00017141,87527.0,87514.0,0.0114413]
[1767078491571,0.00017141,87527.0,87517.0,0.0114409]
[1767078495176,0.00017141,87527.0,87513.0,0.0114413]
[1767078495574,0.00017141,87527.0,87518.0,0.0114408]
[1767078497880,0.00017141,87527.0,87514.0,0.0114412]
[1767078498870,0.05724,87530.0,87510.0,0.15537784]
[1767078499579,0.05724,87530.0,87519.0,0.0114406]
[1767078500876,0.0972,87537.0,87519.0,0.0114406]
[1767078501181,0.02928151,87536.0,87519.0,0.0114406]
[1767078501382,0.15444,87537.0,87519.0,0.0114406]
[1767078501582,0.02928098,87536.0,87519.0,0.0114406]
[1767078501782,0.15444,87537.0,87519.0,0.0114406]
[1767078501977,0.02928096,87536.0,87519.0,0.0114406]
[1767078502185,0.15444,87537.0,87519.0,0.0114406]
[1767078502374,0.02928069,87536.0,87519.0,0.0114406]
[1767078502574,0.15444,87537.0,87519.0,0.0114406]
[1767078502775,0.02928055,87536.0,87519.0,0.0114406]
[1767078502975,0.15444,87537.0,87519.0,0.0114406]
[1767078503182,0.02928051,87536.0,87519.0,0.0114406]
[1767078503385,0.15444,87537.0,87519.0,0.0114406]
[1767078503687,0.02928001,87536.0,87519.0,0.0114406]
[1767078503880,0.05724,87537.0,87525.0,0.0114398]
[1767078504085,0.05724,87537.0,87527.0,0.0114396]
[1767078504285,0.05724,87537.0,87523.0,0.0114401]
[1767078504473,0.05724,87542.0,87523.0,0.0114401]
[1767078505489,0.05724,87542.0,87530.0,0.15537784]
[1767078506187,0.05724,87542.0,87527.0,0.00017141]
[1767078506387,0.05724,87542.0,87530.0,0.15537784]
[1767078508586,0.05724,87542.0,87527.0,0.00017141]
[1767078521197,0.0114379,87541.0,87527.0,0.00017141]
[1767078522306,0.05724,87542.0,87527.0,0.00017141]
[1767078529624,0.0114378,87541.0,87527.0,0.00017141]
[1767078531814,0.05724,87542.0,87527.0,0.00017141]
[1767078535138,0.05724,87542.0,87528.0,0.0114394]
[1767078535330,0.05724,87542.0,87527.0,0.00017141]
[1767078537633,0.0114375,87543.0,87527.0,0.00017141]
[1767078537834,0.0572,87542.0,87527.0,0.00017141]
[1767078540539,0.0572,87542.0,87527.0,0.01161091]
[1767078541843,0.0572,87542.0,87527.0,0.00017141]
[1767078549153,0.0572,87542.0,87528.0,0.0114394]
[1767078555859,0.0572,87542.0,87527.0,0.00017141]
[1767078557553,0.0572,87542.0,87528.0,0.0114394]
[1767078562263,0.0572,87542.0,87527.0,0.00017141]
[1767078562458,0.0972,87547.0,87527.0,0.00017141]
[1767078562654,0.0114372,87546.0,87527.0,0.00017141]
[1767078563053,0.011438,87540.0,87516.0,0.011441]
[1767078563253,0.011438,87540.0,87522.0,0.0572]
[1767078563454,0.011438,87540.0,87522.0,0.0322]
[1767078563964,0.01160941,87540.0,87522.0,0.03237141]
[1767078565262,0.0114384,87537.0,87522.0,0.03237141]
[1767078570767,0.0114384,87537.0,87522.0,0.00017141]
[1767078572476,0.15548533,87540.0,87522.0,0.00017141]
[1767078572974,0.0114381,87539.0,87522.0,0.00017141]
[1767078580371,0.00017141,87540.0,87522.0,0.01161161]
[1767078580765,0.15548533,87540.0,87522.0,0.01161161]
[1767078585669,0.21268533,87540.0,87522.0,0.01161161]
[1767078591682,0.21268533,87540.0,87522.0,0.00017141]
[1767078592368,0.22412323,87540.0,87522.0,0.00017141]
[1767078596990,0.05737141,87540.0,87522.0,0.00017141]
[1767078597185,0.21268533,87540.0,87522.0,0.00017141]
[1767078600179,0.21268533,87540.0,87522.0,1e-08]
[1767078600374,0.15531392,87532.0,87510.0,0.1544]
[1767078600675,0.0572,87531.0,87510.0,0.1544]
[1767078600871,0.0572,87531.0,87510.0,0.21763992]
[1767078601281,0.0572,87531.0,87512.0,0.00017141]
[1767078601282,0.0686392,87531.0,87512.0,0.00017141]
[1767078603081,0.15531392,87522.0,87509.0,0.0572]
[1767078603376,0.15531392,87522.0,87493.0,0.03004447]
[1767078603377,0.15531392,87522.0,87505.0,0.06143172]
[1767078603581,0.15531392,87522.0,87502.0,0.0572]
[1767078603776,0.0114404,87521.0,87502.0,0.0572]
[1767078604178,0.00017141,87520.0,87503.0,0.00017141]
[1767078605689,0.0114407,87519.0,87503.0,0.00017141]
[1767078606777,0.16675542,87513.0,87495.0,0.0972]
[1767078606974,0.16675542,87513.0,87486.0,0.02121249]
[1767078606975,0.15531392,87510.0,87493.0,0.0572]
[1767078607580,0.15531392,87510.0,87489.0,0.0114446]
[1767078607877,0.15531392,87510.0,87491.0,0.00017141]
[1767078608289,0.15531392,87501.0,87491.0,0.00017141]
[1767078608585,0.16675582,87510.0,87489.0,0.05724]
[1767078608888,0.15531392,87510.0,87489.0,0.05724]
[1767078609487,0.15531392,87510.0,87491.0,0.00017141]
[1767078612391,0.0972,87512.0,87491.0,0.00017141]
[1767078612582,0.15531392,87510.0,87491.0,0.01161561]
[1767078613493,0.0972,87512.0,87491.0,0.01161561]
[1767078613790,0.15531392,87510.0,87491.0,0.01161561]
[1767078613993,0.05724,87509.0,87491.0,0.01161561]
[1767078615394,0.0114413,87515.0,87491.0,0.01161561]
[1767078615690,0.15444,87514.0,87491.0,0.01161561]
[1767078616684,0.15531392,87510.0,87491.0,0.01161561]
[1767078621685,0.15531392,87510.0,87494.0,0.0114439]
[1767078621886,0.15531392,87510.0,87491.0,0.00017141]
[1767078622282,0.15444,87514.0,87491.0,0.00017141]
[1767078623198,0.15444,87514.0,87496.0,0.0114436]
[1767078623396,0.15444,87514.0,87492.0,0.0114441]
[1767078623998,0.15531392,87510.0,87495.0,0.0114438]
[1767078625294,0.15444,87514.0,87495.0,0.0114438]
[1767078632099,0.15444,87514.0,87496.0,0.0114436]
[1767078650710,0.15444,87514.0,87495.0,0.0972]
[1767078650902,0.0114415,87513.0,87495.0,0.0972]
[1767078654312,0.0114415,87513.0,87492.0,0.0114441]
[1767078654512,0.0114415,87513.0,87493.0,0.15444]
[1767078654812,0.0114415,87513.0,87494.0,0.0114438]
[1767078658228,0.0114415,87513.0,87493.0,0.15444]
[1767078658523,0.0114419,87510.0,87493.0,0.15444]
[1767078659326,0.1658814,87514.0,87493.0,0.15444]
[1767078660027,0.1658814,87514.0,87490.0,0.05724]
[1767078660028,0.0114424,87506.0,87490.0,0.05724]
[1767078660216,0.0114432,87500.0,87488.0,0.00228604]
[1767078660417,0.2526017,87500.0,87470.0,0.011447]
[1767078660618,0.0114443,87492.0,87470.0,0.011447]
[1767078660821,0.05724,87491.0,87473.0,0.0114466]
[1767078661022,0.05741141,87491.0,87473.0,0.01156088]
[1767078661723,9.727e-05,87490.0,87473.0,0.01156088]
[1767078664727,9.727e-05,87490.0,87473.0,0.00011428]